Cogmind - Beta 16 @@@ ROGUE MODE // 2025.11.06 @ 10:50:00 Player: OMNISSIAH Result: Destroyed by G-47 Trooper with Particle Gun Performance ------------- Evolutions (2) 1000 Regions Visited (3) 600 Robots Destroyed (16) 80 Value Destroyed (407) 407 Prototype IDs (0) 0 Alien Tech Used (0) 0 Bonus (0) 0 TOTAL SCORE: 2087 Bonus ------- None Cogmind --------- Core Integrity 0/550 Matter 147/300 Energy 100/100 System Corruption 0% Temperature Warning (323) Movement Core (50) Location -8/Materials Parts ------- > --- POWER (2) -------- (None) > --- PROPULSION (4) --- (None) > --- UTILITY (3) ------ (None) > --- WEAPON (2) ------- (None) > --- INVENTORY (5) ---- Myomer Leg Small Storage Unit Medium Storage Unit Large Storage Unit Large Storage Unit Peak State ------------ > --- POWER ------------ Ion Engine Light Deuterium Engine > --- PROPULSION ------- Carbon-fiber Leg Carbon-fiber Leg Myomer Leg Myomer Leg > --- UTILITY ---------- Humpback Tractor Beam > --- WEAPON ----------- Beamcaster Minigun > --- INVENTORY -------- Ion Engine Flight Unit Flight Unit Small Storage Unit Medium Storage Unit Large Storage Unit Large Storage Unit Medium Laser [Rating: 35] Favorites ----------- Power Ion Engine Engine Ion Engine Propulsion Myomer Leg Leg Myomer Leg Flight Unit Flight Unit Utility Tractor Beam Device Tractor Beam Storage Small Storage Unit Weapon Beamcaster Energy Gun Beamcaster Ballistic Gun Assault Rifle Launcher Grenade Launcher Special Weapon Mining Laser Build | -11 -10 -10 -8 ------- Run | Yrd Mat Sub Mat Slots Evolved 4 | . . . 4 Power 1 | . . . 1 Propulsion 2 | . . . 2 Utility 1 | . . . 1 Weapon . | . . . . Parts Attached 21 | 7 1 5 8 Power 3 | 1 . . 2 Engine 3 | 1 . . 2 Core . | . . . . Reactor . | . . . . Propulsion 8 | 2 . 2 4 Treads . | . . . . Leg 6 | 2 . 2 2 Wheel . | . . . . Hover . | . . . . Flight 2 | . . . 2 Utility 3 | 2 . . 1 Device 1 | 1 . . . Storage 2 | 1 . . 1 Processor . | . . . . Hackware . | . . . . Protection . | . . . . Artifact . | . . . . Weapon 7 | 2 1 3 1 Energy Gun 3 | 1 . 2 . Energy Cannon . | . . . . Ballistic Gun 2 | 1 . . 1 Ballistic Cannon . | . . . . Launcher 1 | . . 1 . Special Weapon 1 | . 1 . . Impact Weapon . | . . . . Slashing Weapon . | . . . . Piercing Weapon . | . . . . Special Melee Weapon . | . . . . Unidentified Prototypes . | . . . . Parts Lost 13 | . . 1 12 Power 2 | . . . 2 Propulsion 5 | . . . 5 Utility 2 | . . . 2 Weapon 4 | . . 1 3 Highest Loss Streak 11 | . . 1 11 To Critical Strikes . | . . . . Average Backups 5 | 1 4 6 6 Power . | . 1 1 . Propulsion 2 | . . 3 1 Utility 1 | . . . 2 Weapon 1 | . 2 1 1 Tool/Special . | . . . . Unused Backups 4 | . . 1 3 Power . | . . . . Propulsion . | . . . . Utility 4 | . . 1 3 Weapon . | . . . . Tool/Special . | . . . . Average Slot Usage (%) 94 | . 97 99 85 Engine 14 | . 14 14 16 Leg 30 | . 28 28 34 Device 11 | . 12 14 8 Storage 12 | . 14 14 9 Energy Gun 15 | . 14 19 9 Ballistic Gun 2 | . 13 . . Launcher 6 | . . 6 7 Peak Build Rating 35 | 7 7 24 35 Average Rating 21 | 5 6 21 30 On Entrance 9 | . 7 7 24 Avg Prop Armor Cover (%) . | . . . . Naked Turns 1 | . . . 1 Heaviest Build 219 | 15 15 19 219 Greatest Support 80 | 20 20 50 80 Greatest Overweight (x) 20 | . . . 20 Average Overweight (x) . | . . . 2 Largest Inventory Capacity 35 | 8 8 8 35 Average Capacity 16 | 7 8 8 34 Most Carried 9 | 3 6 8 9 Average Carried 6 | 1 4 7 6 Final Capacity 8 | 8 8 8 5 Final Carried 8 | 2 6 8 5 Class Distribution -------------------- 44% | Scavenger-Mutant 29% | Hauler-Mutant 25% | Mutant Dominant Class ---------------- Mutant | -10/Materials Scavenger-Mutant | -10/Subcaves Hauler-Mutant | -8/Materials Resources | -11 -10 -10 -8 ----------- Run | Yrd Mat Sub Mat Matter Collected 535 | 291 25 90 129 Remotely 400 | 156 25 90 129 Salvage Created 436 | 156 35 68 177 Parts 20 | 7 5 2 6 Haulers Intercepted . | . . . . Recyclers Shooed 1 | . . . 1 Parts Field Recycled . | . . . . Retrieved Matter . | . . . . Parts Self-Destructed 5 | . . 5 . Prevented . | . . . . Parts Restored . | . . . . Kills | -11 -10 -10 -8 ------- Run | Yrd Mat Sub Mat Combat Hostiles Destroyed 10 | . 2 3 5 Guns 7 | . 2 1 4 Cannons 1 | . . 1 . AOE 2 | . . 1 1 Classes Destroyed 7 | 2 1 2 2 Worker 1 | . . . 1 Tunneler 4 | 4 . . . Recycler 1 | 1 . . . Swarmer 2 | . 2 . . Grunt 5 | . . 2 3 Sentry 2 | . . . 2 Subdweller 1 | . . 1 . Best Kill Streak 3 | 3 2 2 2 Combat Bots Only 2 | . 2 2 2 Max Kills in Single Turn 2 | 2 1 1 1 Gunslinging . | . . . . Exploded 1 | . . 1 1 Melee . | . . . . Uniques/NPCs Destroyed . | . . . . Combat | -11 -10 -10 -8 -------- Run | Yrd Mat Sub Mat Hostile Shots Fired 137 | . 17 16 104 Missed 26 | . 6 . 20 Hits 111 | . 11 16 84 Projectile 111 | . 11 16 84 Critical Strikes 2 | . . . 2 Damage Taken 2123 | . 92 327 1704 Core 625 | . 15 60 550 Absorbed by Shields . | . . . . Regen/Repaired (Parts) 6 | . 6 . . Core Remaining (%) 85 | 100 . 70 . Volleys Fired 52 | 7 5 10 30 Largest 2 | 2 2 2 2 Hottest 150 | 70 70 150 125 Shots Fired 90 | 14 10 17 49 Gun 70 | 14 10 11 35 Cannon . | . . . . Launcher 17 | . . 3 14 Special 3 | . . 3 . Kinetic 19 | 7 5 . 7 Thermal 54 | 7 5 14 28 Explosive 17 | . . 3 14 Electromagnetic . | . . . . Robot Hit Streak 13 | 6 7 12 13 Robot Miss Streak 3 | 1 3 2 2 Penetration Max . | . . . . Secondary Targets 1 | . 1 . . Max Gunslinging Chain 1 | . 1 . . Shots Hit Robots 63 | 11 5 14 33 Core Hits 33 | 6 2 7 18 Critical Kills . | . . . . Critical Parts Destroyed 1 | 1 . . . Critical Strikes 3 | 1 . 1 1 Burn 2 | . . 1 1 Destroy 1 | 1 . . . Melee Attacks . | . . . . Impact . | . . . . Slashing . | . . . . Piercing . | . . . . Sneak Attacks . | . . . . Combat Hostiles . | . . . . Follow-up Attacks . | . . . . Damage Inflicted 1546 | 145 64 330 1007 Guns 911 | 145 64 143 559 Cannons . | . . . . Explosions 563 | . . 115 448 Melee . | . . . . Ramming . | . . . . Kinetic 214 | 71 26 . 117 Thermal 769 | 74 38 215 442 Explosive 563 | . . 115 448 Electromagnetic . | . . . . Impact . | . . . . Slashing . | . . . . Piercing . | . . . . Highest Corruption . | . . . . Average Corruption . | . . . . Corruption Purged . | . . . . Corruption Blocked . | . . . . Overload Shots . | . . . . Overflow Damage 3 | . . . 3 Projectiles . | . . . . Explosions 3 | . . . 3 Melee . | . . . . Knockbacks . | . . . . Impact . | . . . . Kinetic . | . . . . Secondary . | . . . . Self-Inflicted Damage 63 | . . . 63 Shots 4 | . . . 4 Rammed . | . . . . Targets Rammed . | . . . . Kicked . | . . . . Crushed . | . . . . Highest Temperature 619 | 36 36 10 619 Average Temperature 186 | 15 16 5 243 Received Heat Transfer 783 | . . 54 729 Effects 20 | . . . 20 Shutdowns 1 | . . . 1 Energy Bleed 2 | . . . 2 Interference 3 | . . . 3 Matter Decay 2 | . . . 2 Short Circuit 2 | . . . 2 Damage (minor) 1 | . . . 1 Damage (major) 5 | . . . 5 Damage (core) 4 | . . . 4 Siege Activations . | . . . . Martial Activations . | . . . . Shielding Activations . | . . . . Robots Disrupted . | . . . . Combat Hostiles . | . . . . Robots Corrupted . | . . . . Combat Hostiles . | . . . . Parts Fried . | . . . . Impact Corruptions . | . . . . Robots Melted . | . . . . Combat Hostiles . | . . . . Parts Melted 1 | . . . 1 Heat Transferred 1778 | 222 111 594 851 Parts Sabotaged . | . . . . Parts Stolen . | . . . . Parts Stripped . | . . . . Power Chain Reactions . | . . . . Alert | -11 -10 -10 -8 ------- Run | Yrd Mat Sub Mat Maximum Alert Level . | . . . . Low Security (%) 100 | 100 100 . 100 Level 1 . | . . . . Level 2 . | . . . . Level 3 . | . . . . Level 4 . | . . . . Level 5 . | . . . . High Security . | . . . . Max Security . | . . . . Peak Influence 66 | 15 40 . 66 Initial 3 | . 3 . . Average 11 | 3 9 . 13 Influence Increases 318 | 25 54 50 189 Destroy 0b10 Robot/C 180 | . 40 40 100 Destroy 0b10 Robot/NC 30 | 25 . . 5 Destroy Leader 40 | . . 10 30 Successful Hack 15 | . 14 . 1 Destroy Structure 53 | . . . 53 Influence Decreases 318 | 20 59 50 189 Entered New Map 2 | . 2 . . Time Decay 226 | 20 57 50 99 Lost Part 90 | . . . 90 Squads Dispatched 6 | . 4 . 2 Investigation 3 | . 3 . . Extermination . | . . . . Reinforcement 2 | . 1 . 1 Assault . | . . . . Garrison 1 | . . . 1 Intercept . | . . . . Searches Triggered . | . . . . Construction Impeded 1 | . . . 1 Haulers Reinforced . | . . . . Active Scanning Responses . | . . . . Cargo Convoy Interrupts . | . . . . Stealth | -11 -10 -10 -8 --------- Run | Yrd Mat Sub Mat Distress Signals 2 | . . . 2 Communications Jammed . | . . . . Distress Signals . | . . . . Times Spotted 26 | . 6 11 9 Peak Tracking Total 6 | . 2 6 5 Tactical Retreats . | . . . . Traps | -11 -10 -10 -8 ------- Run | Yrd Mat Sub Mat Traps Triggered . | . . . . Indirectly . | . . . . Trap Hack Attempts . | . . . . Triggered . | . . . . Disarmed . | . . . . Reprogrammed . | . . . . Reused . | . . . . Traps Extracted . | . . . . Installed . | . . . . Triggered . | . . . . Machines | -11 -10 -10 -8 ---------- Run | Yrd Mat Sub Mat Machines Disabled . | . . . . Max in Single Turn . | . . . . Machines Repaired . | . . . . Machines Dismantled . | . . . . Machines Sabotaged . | . . . . Overloaded Fab Kills . | . . . . Hacking | -11 -10 -10 -8 --------- Run | Yrd Mat Sub Mat Machines Accessed 5 | . 4 . 1 Terminals 3 | . 3 . . Fabricators . | . . . . Repair Stations 1 | . 1 . . Recycling Units . | . . . . Scanalyzers 1 | . . . 1 Garrison Access . | . . . . Total Hacks 23 | . 16 . 7 Successful 14 | . 10 . 4 Failed 8 | . 6 . 2 Catastrophic . | . . . . Database Lockouts 1 | . . . 1 Manual . | . . . . Terminals 13 | . 13 . . Fabricators . | . . . . Repair Stations 3 | . 3 . . Recycling Units . | . . . . Scanalyzers 7 | . . . 7 Garrison Access . | . . . . Terminal Hacks 8 | . 8 . . Record 1 | . 1 . . Emergency Access Points 1 | . 1 . . Alert Level 1 | . 1 . . Locate Traps 1 | . 1 . . Dispatch Records 1 | . 1 . . Reinforcement Status 1 | . 1 . . Hauler Manifests 1 | . 1 . . Zone Layout 1 | . 1 . . Fabricator Hacks . | . . . . Repair Station Hacks 2 | . 2 . . Scan Component 1 | . 1 . . Repair 1 | . 1 . . Recycling Unit Hacks . | . . . . Scanalyzer 4 | . . . 4 Insert Component 1 | . . . 1 Analyze 1 | . . . 1 Retrieve Study 2 | . . . 2 Garrison Access Hacks . | . . . . Unauthorized Hacks . | . . . . Terminals . | . . . . Fabricators . | . . . . Repair Stations . | . . . . Recycling Units . | . . . . Scanalyzers . | . . . . Garrison Access . | . . . . Data Cores Recovered . | . . . . Used . | . . . . Hacking Detections 4 | . 4 . . Full Trace Events 3 | . 3 . . Feedback Events . | . . . . Feedback Blocked . | . . . . Robot Schematics Acquired . | . . . . Robots Built . | . . . . Authchips . | . . . . Time . | . . . . Total Robot Build Rating . | . . . . Part Schematics Acquired 1 | . . . 1 Parts Built . | . . . . Authchips . | . . . . Time . | . . . . Total Part Build Rating . | . . . . Part Studies Acquired 2 | . . . 2 Parts Repaired 1 | . 1 . . Time 26 | . 26 . . Parts Recycled . | . . . . Recycled Matter . | . . . . Retrieved Matter . | . . . . Retrieved Components . | . . . . Parts Scanalyzed 1 | . . . 1 Part Schematics Acquired 1 | . . . 1 Parts Damaged . | . . . . Bothacking | -11 -10 -10 -8 ------------ Run | Yrd Mat Sub Mat Used RIF Installer . | . . . . Robots Hacked . | . . . . Non-combat . | . . . . Combat . | . . . . Robot Hacks Applied . | . . . . Relay Couplers Released . | . . . . Fabnet Peak Effective % . | . . . . Robots Rewired . | . . . . Allies Hacked . | . . . . Hacks Repelled . | . . . . Allies | -11 -10 -10 -8 -------- Run | Yrd Mat Sub Mat Total Allies . | . . . . Largest Group . | . . . . Highest-Rated Group . | . . . . Highest-Rated Ally . | . . . . Total Orders . | . . . . Ally Attacks . | . . . . Total Damage . | . . . . Kills . | . . . . Allies Corrupted . | . . . . Allies Melted . | . . . . Intel | -11 -10 -10 -8 ------- Run | Yrd Mat Sub Mat Active Infowar (turns) . | . . . . Robot Analysis Total . | . . . . Derelict Logs Recovered . | . . . . Drone Launches . | . . . . Drone Recoveries . | . . . . Exploration | -11 -10 -10 -8 ------------- Run | Yrd Mat Sub Mat Turns Passed 1463 | 92 200 710 461 Spaces Moved 869 | 53 127 553 136 Core 7 | 7 . . . Treads . | . . . . Legs 861 | 46 127 553 135 Wheels . | . . . . Hover . | . . . . Flight 1 | . . . 1 Fastest Speed 50 | 50 120 120 260 Average Speed 142 | 110 120 120 270 Slowest Speed 1637 | 120 120 120 1637 Overloaded Moves . | . . . . Propulsion Burnouts . | . . . . Robots Hopped . | . . . . Potential Cave-ins . | . . . . Cave-ins Triggered . | . . . . Exploration Rate (%) 18 | 3 21 41 9 Regions Visited 3 Branch Regions 1 Pre-discovered Areas . | . . . . Known Exits Taken . | . . . . Unknown Exits Taken 3 | 1 1 1 . Scrap Searched . | . . . . Spaces Dug 7 | . . . 7 Terrain Destroyed 79 | . . 24 55 Melee . | . . . . Projectile 2 | . . . 2 AOE 77 | . . 24 53 Terrain Rammed . | . . . . Walls Destroyed . | . . . . Machines Disabled . | . . . . Actions | -11 -10 -10 -8 --------- Run | Yrd Mat Sub Mat Total 992 | 69 163 578 182 Wait 27 | . 26 1 . Move 866 | 52 126 552 136 Hop . | . . . . Pick Up 18 | 3 4 5 6 Fast Attach 7 | 6 1 . . Attach 8 | 1 . 1 6 Detach . | . . . . Swap 8 | . 1 4 3 Drop 6 | . . 5 1 Fire 52 | 7 5 10 30 Melee . | . . . . Ram . | . . . . Kick . | . . . . Crush . | . . . . Escape Stasis . | . . . . Rewire . | . . . . Trap . | . . . . Miscellaneous . | . . . . Route ------- -11/Scrapyard -10/Materials -10/Subcaves -8/Materials History --------- Turn | Location | Event 10 | -11/Scrapyard | Discovered new exit (range 15) 93 | -11/Scrapyard | Entered Materials 173 | -10/Materials | Repaired Tractor Beam 268 | -10/Materials | Discovered new exit (range 8) 293 | -10/Materials | Entered Subcaves 309 | -10/Subcaves | Build established: Mutant 350 | -10/Subcaves | Ambushed by swarm of Subdwellers 406 | -10/Subcaves | Lost 3 allies 418 | -10/Subcaves | A swath of the cavern ceiling suddenly collapsed 670 | -10/Subcaves | Discovered new exit (range 16) 679 | -10/Subcaves | Build established: Scavenger-Mutant 690 | -10/Subcaves | Shifting Twisted Machinery released Sub. Monowheel 1003 | -10/Subcaves | Entered Materials 1003 | -8/Materials | Evolved 4 slots: Power x1, Propulsion x2, Utility x1 1071 | -8/Materials | Central database locked down 1304 | -8/Materials | Build established: Hauler-Mutant 1395 | -8/Materials | Garrison activated, responded to threat 1445 | -8/Materials | Core integrity fell below 50% 1451 | -8/Materials | Core integrity fell below 20% 1464 | -8/Materials | Destroyed by G-47 Trooper with Particle Gun Last Messages --------------- Critical hit (Burn: +37). Overheating: System interference. Minigun temporarily disabled. Overheating: Matter decay (-36). R-06 Scavenger collects Aluminum Leg. U-05 Engineer lays Concrete. Overheating: Core damaged (-60). Minigun destroyed. U-05 Engineer lays Concrete. Tractor Beam destroyed. Overheating: Core damaged (-82). Overheating: Energy bleed (-16). Flight Unit+ destroyed. Flight Unit+ broken. Overheating: Short circuit. R-06 Scavenger collects Aluminum Leg. K-01 Serf collects debris. Humpback destroyed. Broken Flight Unit+ destroyed. The unstable cave ceiling collapses. Map ----- +----------------------------------------------------+ | ?????????????????????????????????????????????????? | | ?????????????????????????????????????????????????? | | ?????????????????????????????????????????????????? | | ?????????????????????????????????????????????????? | | ?????????????????????????????????????????????????? | | ?????????????????????????????????????????????????? | | ?????????????????????????????????????????????????? | | ?????????????????????????????????????????????????? | | ???????????????????????????#?????????????????????? | | ??????????????????????????? ?????????????????????? | | ??????????????????????????? ?????????????????????? | | ?????????????????????????? ?????????????????????? | | ???????????????????????##? #?????????????????????? | | ???????????????????????! ? #?????????????????????? | | ???????????????? ??????? ? #?#######?????????????? | | ????????????????# ?????? ? #?# ##????????????? | | ????????????????# ?????[? #?# ?????????????? | | ????????????????# ?????[? ### ?????????????? | | ????????????????# ????? # ## ??????????????? | | ????????????????# ????? ## ??????????????? | | ????????????????# ?????# ## #??????????????? | | ????????????????+ #####*w ### #??????????????? | | ????????????????# # g%g # #??????????????? | | ????????????????# # !g ] + #??????????????? | | ????????? ""??# # [ k# ####???????????? | | ???????? # @ # !##??????????? | | ?????????????# # ####### !#??????????? | | ????????###### #??????????? | | ????? #??????????? | | ?????????###### # #??????????? | | ??????????????# # ##+### !##??????????? | | ?????????????# # ####???????????? | | ?????????????#### """ # """ # ####???????????? | | ????????????????# "Y" # """ # ## #####???????? | | ????????????????# # """ # # #???????? | | ????????????????# # # # #???????? | | ????????????????# # ! # ! #???????? | | ????????????????##### ######### + #???????? | | ????????????????????###?????# # # #???????? | | ????????????????????????????# # # #???????? | | ????????????????????????????### ####???????? | | ?????????????????????????????## # #???????? | | ?????????????????????????????## # #???????? | | ??????????????????????????????# "S #???????? | | ??????????????????????????????# + """ #???????? | | ??????????????????????????????# # "" #???????? | | ??????????????????????????????# # #???????? | | ??????????????????????????????# ########???????? | | ??????????????????????????????#####??????????????? | | ?????????????????????????????????????????????????? | +----------------------------------------------------+ Best States ------------- Heat Dissipation 31 Energy Generation 21 Energy Capacity 400 Matter Stores 300 Matter Capacity 300 Sight Range 16 Terrain Scan Density 10 Evasion (%) 55 Item Schematics ----------------- Minigun | -8/Materials | Scanalyzed Robot Schematics ------------------ None Fabricated ------------ Nothing Repaired ---------- Tractor Beam | 76% | -10/Materials Studied --------- Flight Unit | -8/Materials | Hacked Ion Engine | -8/Materials | Hacked Alien Tech Used ----------------- None Achievements -------------- Ghost 'Em Party Time Tank Troublemaker Use The Force Challenges ------------ None Game ------ Seed SchematicPowerShielding Manual? 0 Play Time 00:20:24 Cumulative 4.6 hours Start 2025.11.06 @ 09:18:30 End 2025.11.06 @ 10:50:00 Sessions 3 Manual Loads 0 Difficulty Rogue Special Mode None Game No. 8 Rogue 8 Adventurer 0 Explorer 0 Win Type - Total 0 Types 0/0/0/0/0/0/0/0/0/0 Lore% 9 Gallery% 7 Achievement% 10 Wizard Run 0 Options --------- Layout 1 ASCII 0 Keyboard 0 Movement Arrows Keybinds 0 Fullscreen 1 Font 24/Smallcaps Map View 50x35 Zoom Use 0% Tactical HUD 0 Map Filters NONE Filters NONE Steam 1 RUN: a83fae7d-e76c-44ef-aa2f-b788a9d73b09